fUST/lending_fUST_20250602
["ID","MTS","AMOUNT","RATE_DAILY","PERIOD"]
[363699050,1748823040241,-151.0,0.0002156,2]
[363699052,1748823040251,-151.0,0.0002156,2]
[363699054,1748823040262,-151.0,0.000216,3]
[363699056,1748823040272,-151.0,0.000216,3]
[363699058,1748823040281,-430.0,0.00021628,2]
[363699060,1748823040291,-700.17,0.00021628,2]
[363699062,1748823040301,-740.97,0.00021628,2]
[363699064,1748823040311,-698.97,0.00021628,2]
[363699067,1748823040321,-1125.89,0.00021628,2]
[363699068,1748823040330,-812.58,0.00021628,2]
[363699071,1748823040344,-370.65929463,0.00021717,2]
[363699073,1748823040354,-500.0,0.0002172,2]
[363699075,1748823040364,-500.0,0.0002172,2]
[363699077,1748823040374,-158.71540175,0.0002172,2]
[363699079,1748823040384,-168.73407253,0.0002172,2]
[363699081,1748823040394,-500.0,0.0002172,2]
[363699083,1748823040404,-272.15343245,0.0002172,2]
[363699085,1748823040414,-500.0,0.0002172,2]
[363699087,1748823040424,-649.21402904,0.0002172,2]
[363699089,1748823040434,-435.1065346,0.0002172,2]
[363699091,1748823040443,-500.0,0.0002172,2]
[363699093,1748823040452,-500.0,0.0002172,2]
[363699095,1748823040463,-500.0,0.0002172,2]
[363699097,1748823040472,-500.0,0.0002172,2]
[363699099,1748823040481,-239.8002961,0.0002172,2]
[363699101,1748823040491,-431.25,0.00021829,2]
[363699103,1748823040502,-430.0,0.00021829,2]
[363699105,1748823040511,-977.45,0.00021829,2]
[363699107,1748823040521,-430.0,0.00021829,2]
[363699109,1748823040530,-430.0,0.0002183,2]
[363699111,1748823040541,-430.0,0.0002183,2]
[363699114,1748823040551,-255.07,0.0002183,2]
[363699115,1748823040563,-963.95,0.0002183,2]
[363699117,1748823040573,-567.47,0.0002183,2]
[363699119,1748823040582,-5000.0,0.00021874,2]
[363699121,1748823040595,-286.74,0.000219,2]
[363699124,1748823040606,-399.31,0.000219,2]
[363699126,1748823040616,-2352.86,0.000219,2]
[363699128,1748823040625,-430.0,0.00021902,2]
[363699130,1748823040635,-700.17,0.00021902,2]
[363699132,1748823040644,-740.97,0.00021902,2]
[363699133,1748823040654,-698.97,0.00021902,2]
[363699135,1748823040664,-1125.89,0.00021902,2]
[363699137,1748823040673,-812.58,0.00021902,2]
[363699140,1748823040683,-823.0,0.00021994,2]
[363699142,1748823040693,-175.0,0.00022,2]
[363699144,1748823040702,-175.0,0.00022,2]
[363699145,1748823040712,-171.0,0.00022,2]
[363699147,1748823040721,-150.25210295,0.0002209,2]
[363699149,1748823040732,-151.0,0.000221,9]
[363699151,1748823040742,-151.0,0.000221,7]
[363699154,1748823040752,-431.25,0.00022103,2]
[363699156,1748823040762,-405.52,0.00022103,2]
[363699158,1748823040771,-977.45,0.00022103,2]
[363699160,1748823040780,-464.11,0.00022103,2]
[363699162,1748823040790,-430.0,0.00022104,2]
[363699164,1748823040800,-430.0,0.00022104,2]
[363699166,1748823040809,-963.95,0.00022104,2]
[363699168,1748823040819,-567.47,0.00022104,2]
[363699170,1748823040829,-2497.99,0.0002212,2]
[363699172,1748823040839,-430.0,0.00022176,2]
[363699174,1748823040849,-700.17,0.00022176,2]
[363699176,1748823040859,-740.97,0.00022176,2]
[363699178,1748823040869,-698.97,0.00022176,2]
[363699180,1748823040879,-1125.89,0.00022176,2]
[363699182,1748823040888,-812.58,0.00022176,2]
[363699184,1748823040899,-151.0,0.00022245,7]
[363699186,1748823040908,-1400.0,0.00022259,2]
[363699188,1748823040917,-359.78747334,0.00022268,2]
[363699190,1748823040927,-19047.58,0.000223,2]
[363699192,1748823040936,-250.0,0.00022327,2]
[363699194,1748823040945,-431.25,0.00022377,2]
[363699196,1748823040955,-977.45,0.00022377,2]
[363699198,1748823040964,-430.0,0.00022378,2]
[363699200,1748823040974,-536.04,0.00022378,2]
[363699202,1748823040984,-963.95,0.00022378,2]
[363699204,1748823040994,-567.47,0.00022378,2]
[363699206,1748823041004,-185.50360293,0.00022384,2]
[363699208,1748823041013,-2082.78383886,0.00022386,2]
[363699210,1748823041023,-430.0,0.0002245,2]
[363699212,1748823041033,-700.17,0.0002245,2]
[363699214,1748823041042,-740.97,0.0002245,2]
[363699216,1748823041052,-698.97,0.0002245,2]
[363699218,1748823041061,-1125.89,0.0002245,2]
[363699220,1748823041071,-812.58,0.0002245,2]
[363699222,1748823041080,-7498.7979491,0.00022525,2]
[363699224,1748823041092,-5000.0,0.00022525,2]
[363699226,1748823041104,-5000.0,0.00022525,2]
[363699228,1748823041114,-5000.0,0.00022525,2]
[363699230,1748823041123,-5000.0,0.00022525,2]
[363699232,1748823041132,-657.40679757,0.0002255,2]
[363699234,1748823041143,-151.0,0.00022606,7]
[363699236,1748823041153,-151.0,0.00022606,7]
[363699238,1748823041162,-230.230761,0.00022606,2]
[363699240,1748823041171,-230.230761,0.00022606,2]
[363699242,1748823041183,-151.0,0.00022606,2]
[363699244,1748823041192,-154.67873888,0.00022606,2]
[363699246,1748823041202,-300.0,0.00022606,2]
[363699248,1748823041211,-2000.0,0.00022606,2]
[363699250,1748823041221,-300.0,0.00022606,2]
[363699252,1748823041231,-2000.0,0.00022606,2]
[363699254,1748823041240,-300.0,0.00022606,2]
[363699256,1748823041249,-207.4,0.00022606,2]
[363699258,1748823041258,-2000.0,0.00022606,2]
[363699260,1748823041268,-300.0,0.00022606,2]
[363699262,1748823041278,-2000.0,0.00022606,2]
[363699264,1748823041288,-300.0,0.00022606,2]
[363699266,1748823041297,-2000.0,0.00022606,2]
[363699269,1748823041308,-300.0,0.00022606,2]
[363699271,1748823041318,-5000.0,0.00022606,2]
[363699272,1748823041327,-2000.0,0.00022606,2]
[363699275,1748823041337,-300.0,0.00022606,2]
[363699276,1748823041348,-2000.0,0.00022606,2]
[363699278,1748823041358,-300.0,0.00022606,2]
[363699280,1748823041368,-2000.0,0.00022606,2]
[363699282,1748823041378,-300.0,0.00022606,2]
[363699284,1748823041387,-2000.0,0.00022606,2]
[363699286,1748823041397,-300.0,0.00022606,2]
[363699288,1748823041410,-2000.0,0.00022606,2]
[363699290,1748823041420,-300.0,0.00022606,2]
[363699292,1748823041429,-2000.0,0.00022606,2]
[363699294,1748823041439,-300.0,0.00022606,2]
[363699296,1748823041448,-2000.0,0.00022606,2]
[363699298,1748823041458,-1215.5802251,0.00022606,2]
[363699300,1748823041467,-300.0,0.00022606,2]
[363699302,1748823041477,-2000.0,0.00022606,2]
[363699305,1748823041486,-300.0,0.00022606,2]
[363699306,1748823041496,-2000.0,0.00022606,2]
[363699309,1748823041506,-300.0,0.00022606,2]
[363699311,1748823041515,-181.41279037,0.00022606,2]
[363699312,1748823041525,-431.25,0.00022651,2]
[363699315,1748823041535,-977.45,0.00022651,2]
[363699317,1748823041545,-151.0,0.00022651,7]
[363699319,1748823041555,-430.0,0.00022652,2]
[363699321,1748823041564,-963.95,0.00022652,2]
[363699323,1748823041575,-567.47,0.00022652,2]
[363699325,1748823041585,-185.50360293,0.00022685,2]
[363699327,1748823041595,-151.0,0.000227,10]
[363699329,1748823041606,-151.0,0.000227,10]
[363699331,1748823041615,-430.0,0.00022724,2]
[363699333,1748823041626,-700.17,0.00022724,2]
[363699335,1748823041636,-740.97,0.00022724,2]
[363699337,1748823041646,-698.97,0.00022724,2]
[363699339,1748823041656,-1125.89,0.00022724,2]
[363699341,1748823041666,-812.58,0.00022724,2]
[363699343,1748823041675,-600.0,0.00022905,2]
[363699345,1748823041685,-431.25,0.00022925,2]
[363699347,1748823041695,-977.45,0.00022925,2]
[363699349,1748823041705,-430.0,0.00022926,2]
[363699351,1748823041715,-963.95,0.00022926,2]
[363699353,1748823041725,-567.47,0.00022926,2]
[363699355,1748823041734,-151.0,0.00022926,7]
[363699357,1748823041743,-151.0,0.00022926,7]
[363699359,1748823041753,-150.25210295,0.00022948,2]
[363699361,1748823041763,-185.50360293,0.00022986,2]
[363699363,1748823041772,-185.36254939,0.00022986,2]
[363699365,1748823041782,-185.36254939,0.00022986,2]
[363699367,1748823041791,-5000.0,0.00022989,3]
[363699369,1748823041801,-430.0,0.00022998,2]
[363699372,1748823041812,-700.17,0.00022998,2]
[363699374,1748823041822,-740.97,0.00022998,2]
[363699376,1748823041832,-698.97,0.00022998,2]
[363699378,1748823041843,-1125.89,0.00022998,2]
[363699380,1748823041852,-812.58,0.00022998,2]
[363699382,1748823041862,-160.0,0.00023,3]
[363699384,1748823041872,-423.51412927,0.00023,3]
[363699386,1748823041882,-229.3709046,0.00023,3]
[363699388,1748823041892,-160.0,0.00023,3]
[363699390,1748823041901,-160.0,0.00023,3]
[363699392,1748823041911,-176.0,0.00023014,7]
[363699394,1748823041920,-176.0,0.00023014,7]
[363699396,1748823041929,-399.31,0.000231,7]
[363699398,1748823041939,-2352.86,0.000231,2]
[363699400,1748823041948,-751.56940287,0.00023143,2]
[363699402,1748823041958,-272.80097017,0.00023154,2]
[363699404,1748823041967,-5000.0,0.00023154,2]
[363699406,1748823041977,-8836.68,0.00023174,7]
[363699408,1748823041986,-4602.63,0.00023188,2]
[363699410,1748823041996,-431.25,0.00023199,2]
[363699412,1748823042005,-977.45,0.00023199,2]
[363699414,1748823042014,-6898.36184618,0.000232,2]
[363699416,1748823042024,-286.74,0.000232,7]
[363699418,1748823042033,-151.0,0.000232,6]
[363699420,1748823042043,-430.0,0.000232,2]
[363699422,1748823042052,-151.0,0.000232,10]
[363699424,1748823042061,-963.95,0.000232,2]
[363699426,1748823042071,-567.47,0.000232,2]
[363699428,1748823042080,-5000.0,0.0002321,3]
[363699430,1748823042092,-4000.0,0.00023242,3]
[363699432,1748823042104,-180.16,0.00023272,2]
[363699434,1748823042114,-700.40978705,0.00023272,2]
[363699436,1748823042123,-741.2,0.00023272,2]
[363699438,1748823042133,-699.09550594,0.00023272,2]
[363699440,1748823042143,-1125.89512913,0.00023272,2]
[363699442,1748823042153,-812.66733768,0.00023272,2]
[363699444,1748823042162,-151.0,0.00023279,7]
[363699446,1748823042172,-151.0,0.00023279,7]
[363699448,1748823042182,-151.0,0.00023279,7]
[363699450,1748823042192,-185.50360293,0.00023288,2]
[363699452,1748823042202,-962.0,0.000233,2]
[363699454,1748823042211,-708.0,0.000233,2]
[363699456,1748823042220,-2226.0,0.000233,2]
[363699458,1748823042230,-405.0,0.000233,2]
[363699460,1748823042239,-499.999999,0.000233,2]
[363699462,1748823042250,-2162.844545,0.00023324,3]
[363699464,1748823042259,-1400.0,0.00023355,2]
[363699466,1748823042269,-6000.0,0.0002338,3]
[363699468,1748823042279,-151.0,0.0002338,7]
[363699470,1748823042289,-151.0,0.000234,9]
[363699472,1748823042298,-423.51412927,0.000234,3]
[363699474,1748823042308,-19047.58,0.000234,2]
[363699476,1748823042317,-229.3709046,0.000234,3]
[363699478,1748823042327,-314.88098828,0.000234,3]
[363699480,1748823042337,-431.25,0.00023473,2]
[363699482,1748823042348,-977.45,0.00023473,2]
[363699484,1748823042358,-430.0,0.00023474,2]
[363699486,1748823042368,-963.95,0.00023474,2]
[363699488,1748823042380,-567.47,0.00023474,2]
[363699490,1748823042390,-2000.0,0.00023479,2]
[363699492,1748823042400,-2000.0,0.00023479,2]
[363699494,1748823042411,-2000.0,0.00023479,2]
[363699496,1748823042421,-2000.0,0.00023479,2]
[363699498,1748823042430,-2000.0,0.00023479,2]
[363699500,1748823042440,-2000.0,0.00023479,2]
[363699502,1748823042449,-659.52,0.00023479,2]
[363699504,1748823042458,-160.0,0.00023561,2]
[363699506,1748823042468,-160.0,0.00023561,2]
[363699508,1748823042477,-160.97790675,0.00023577,2]
[363699510,1748823042487,-160.0,0.00023577,2]
[363699512,1748823042498,-2500.0,0.000236,5]
[363699514,1748823042507,-800.0,0.00023619,2]
[363699516,1748823042517,-500.0,0.00023632,4]
[363699518,1748823042527,-800.0,0.00023648,2]
[363699520,1748823042537,-21292.586026,0.00023656,2]
[363699522,1748823042547,-151.0,0.00023656,7]
[363699524,1748823042557,-151.0,0.00023656,7]
[363699526,1748823042567,-151.0,0.00023656,7]
[363699529,1748823042578,-3549.1,0.000237,30]
[363699531,1748823042587,-151.0,0.000237,7]
[363699532,1748823042598,-151.0,0.000237,7]
[363699535,1748823042608,-2082.78383886,0.000237,2]
[363699536,1748823042617,-153.02,0.000237,31]
[363699538,1748823042627,-153.02,0.000237,31]
[363699540,1748823042637,-153.02,0.000237,31]
[363699543,1748823042647,-153.02,0.000237,31]
[363699544,1748823042656,-153.02,0.000237,31]
[363699546,1748823042666,-153.02,0.000237,31]
[363699549,1748823042676,-153.02,0.000237,31]
[363699550,1748823042685,-230.230761,0.00023702,2]
[363699568,1748823042797,-230.230761,0.00023702,2]
[363699570,1748823042808,-5000.0,0.00023702,2]
[363699572,1748823042818,-800.0,0.00023736,2]
[363699575,1748823042828,-431.25,0.00023747,2]
[363699577,1748823042838,-977.45,0.00023747,2]
[363699580,1748823042848,-541.35404927,0.00023748,2]
[363699583,1748823042858,-963.95,0.00023748,2]
[363699586,1748823042867,-567.47,0.00023748,2]
[363699589,1748823042877,-500.0,0.00023773,2]
[363699592,1748823042887,-500.0,0.00023773,2]
[363699595,1748823042896,-500.0,0.00023773,2]
[363699598,1748823042906,-561.80109613,0.00023773,2]
[363699601,1748823042915,-500.0,0.00023773,2]
[363699603,1748823042924,-160.19303722,0.00023773,2]
[363699605,1748823042934,-500.16902464,0.00023773,2]
[363699607,1748823042944,-500.0,0.00023773,2]
[363699609,1748823042954,-160.19966336,0.00023773,2]
[363699611,1748823042963,-500.0,0.00023773,2]
[363699613,1748823042973,-500.0,0.00023773,2]
[363699615,1748823042983,-500.0,0.00023773,2]
[363699617,1748823042992,-501.23363399,0.00023773,2]
[363699619,1748823043001,-500.0,0.00023799,9]
[363699621,1748823043011,-500.0,0.00023799,9]
[363699623,1748823043020,-211558.49038855,0.000238,2]
[363699633,1748823043106,-412.03931674,0.00018614,2]
[363699635,1748823043118,-17.96068326,0.00018614,2]
[363699637,1748823043127,-430.0,0.00018888,2]
[363699639,1748823043139,-430.0,0.00019162,2]
[363699641,1748823043148,-430.0,0.00019436,2]
[363699643,1748823043157,-430.0,0.0001971,2]
[363699645,1748823043167,-430.0,0.00019984,2]
[363699647,1748823043177,-430.0,0.00020258,2]
[363699649,1748823043187,-298.43,0.000211,10]
[363699651,1748823043197,-3433.72721619,0.000238,2]
[363699653,1748823043208,-34326.08269221,0.000238,2]
[363699655,1748823043218,-3713.65347511,0.000238,2]
[363699865,1748823269382,255.954146,0.00013699,2]
[363699938,1748824232540,-1244.45385032,0.00016671,2]
[363699940,1748824232555,-419.29095296,0.00016671,2]
[363699943,1748824232567,-639.7803391,0.00016671,2]
[363699945,1748824232578,-407.96641018,0.00016671,2]
[363700221,1748824238419,-2288.50844744,0.00016671,2]
[363700222,1748824238429,-87.59154256,0.00016839,2]
[363700223,1748824238526,-95.14810424,0.00016839,2]
[363700224,1748824238536,-300.0,0.00016969,2]
[363700225,1748824238546,-300.0,0.00017181,2]
[363700226,1748824238555,-430.0,0.00017182,2]
[363700227,1748824238565,-430.0,0.00017182,2]
[363700228,1748824238574,-430.0,0.00017182,2]
[363700229,1748824238584,-430.0,0.00017182,2]
[363700230,1748824238593,-430.0,0.00017182,2]
[363700231,1748824238603,-506.65,0.00017182,2]
[363700232,1748824238613,-430.0,0.00017182,2]
[363700233,1748824238623,-430.0,0.00017182,2]
[363700234,1748824238633,-430.0,0.00017182,2]
[363700235,1748824238644,-502.16,0.00017182,2]
[363700236,1748824238654,-455.79,0.00017182,2]
[363700237,1748824238663,-430.0,0.00017182,2]
[363700238,1748824238673,-430.0,0.00017182,2]
[363700239,1748824238682,-24900.0,0.00017183,2]
[363700240,1748824238692,-150.25210295,0.00017356,2]
[363700241,1748824238702,-228.41697472,0.0001737,2]
[363700242,1748824238711,-430.0,0.00017456,2]
[363700243,1748824238721,-430.0,0.00017456,2]
[363700244,1748824238730,-430.0,0.00017456,2]
[363700245,1748824238740,-430.0,0.00017456,2]
[363700246,1748824238750,-430.0,0.00017456,2]
[363700247,1748824238760,-506.65,0.00017456,2]
[363700248,1748824238770,-430.0,0.00017456,2]
[363700249,1748824238780,-430.0,0.00017456,2]
[363700250,1748824238789,-430.0,0.00017456,2]
[363700251,1748824238799,-502.16,0.00017456,2]
[363700252,1748824238808,-455.79,0.00017456,2]
[363700253,1748824238818,-430.0,0.00017456,2]
[363700254,1748824238827,-430.0,0.00017456,2]
[363700255,1748824238836,-573.89,0.00017516,2]
[363700256,1748824238846,-430.0,0.00017516,2]
[363700257,1748824238855,-430.0,0.00017516,2]
[363700258,1748824238865,-430.0,0.00017516,2]
[363700259,1748824238876,-430.0,0.00017516,2]
[363700260,1748824238886,-430.0,0.00017516,2]
[363700261,1748824238895,-430.0,0.00017516,2]
[363700262,1748824238905,-580.15,0.00017516,2]
[363700263,1748824238915,-430.0,0.00017516,2]
[363700264,1748824238924,-430.0,0.00017516,2]
[363700265,1748824238933,-1000.0,0.00017516,2]
[363700266,1748824238943,-430.0,0.00017516,2]
[363700267,1748824238953,-430.0,0.0001773,2]
[363700268,1748824238963,-430.0,0.0001773,2]
[363700269,1748824238973,-430.0,0.0001773,2]
[363700270,1748824238982,-430.0,0.0001773,2]
[363700271,1748824238991,-430.0,0.0001773,2]
[363700272,1748824239001,-506.65,0.0001773,2]
[363700273,1748824239011,-430.0,0.0001773,2]
[363700274,1748824239020,-430.0,0.0001773,2]
[363700275,1748824239030,-430.0,0.0001773,2]
[363700276,1748824239039,-502.16,0.0001773,2]
[363700277,1748824239049,-455.79,0.0001773,2]
[363700278,1748824239059,-430.0,0.0001773,2]
[363700279,1748824239069,-430.0,0.0001779,2]
[363700280,1748824239079,-430.0,0.0001779,2]
[363700281,1748824239090,-268.1,0.0001779,2]
[363700282,1748824239106,-430.0,0.0001779,2]
[363700283,1748824239115,-430.0,0.0001779,2]
[363700284,1748824239125,-580.15,0.0001779,2]
[363700285,1748824239135,-430.0,0.0001779,2]
[363700286,1748824239145,-430.0,0.0001779,2]
[363700287,1748824239155,-3637.54846474,0.000179,2]
[363700288,1748824239166,-430.0,0.00018004,2]
[363700289,1748824239175,-430.0,0.00018004,2]
[363700290,1748824239184,-430.0,0.00018004,2]
[363700291,1748824239194,-405.52,0.00018004,2]
[363700292,1748824239204,-430.0,0.00018004,2]
[363700293,1748824239214,-506.65,0.00018004,2]
[363700294,1748824239224,-430.0,0.00018004,2]
[363700295,1748824239233,-430.0,0.00018004,2]
[363700296,1748824239243,-430.0,0.00018004,2]
[363700297,1748824239253,-502.16,0.00018004,2]
[363700298,1748824239263,-455.79,0.00018004,2]
[363700299,1748824239272,-464.11,0.00018004,2]
[363700300,1748824239282,-430.0,0.00018064,2]
[363700301,1748824239291,-255.07,0.00018064,2]
[363700302,1748824239301,-430.0,0.00018064,2]
[363700303,1748824239310,-580.15,0.00018064,2]
[363700304,1748824239320,-430.0,0.00018064,2]
[363700305,1748824239331,-430.0,0.00018064,2]
[363700306,1748824239342,-3637.54846454,0.00018107,2]
[363700307,1748824239351,-787.25,0.00018209,2]
[363700308,1748824239361,-430.0,0.00018278,2]
[363700309,1748824239371,-430.0,0.00018278,2]
[363700310,1748824239382,-430.0,0.00018278,2]
[363700311,1748824239391,-430.0,0.00018278,2]
[363700312,1748824239401,-506.65,0.00018278,2]
[363700313,1748824239413,-430.0,0.00018278,2]
[363700314,1748824239424,-430.0,0.00018278,2]
[363700315,1748824239433,-430.0,0.00018278,2]
[363700316,1748824239443,-502.16,0.00018278,2]
[363700317,1748824239452,-455.79,0.00018278,2]
[363700318,1748824239461,-3637.54846454,0.00018314,2]
[363700319,1748824239471,-430.0,0.00018338,2]
[363700320,1748824239480,-430.0,0.00018338,2]
[363700321,1748824239490,-580.15,0.00018338,2]
[363700322,1748824239500,-430.0,0.00018338,2]
[363700323,1748824239510,-430.0,0.00018338,2]
[363700324,1748824239520,-3637.54846454,0.00018521,2]
[363700325,1748824239530,-420.0,0.00018535,2]
[363700326,1748824239540,-430.0,0.00018552,2]
[363700327,1748824239550,-430.0,0.00018552,2]
[363700328,1748824239560,-430.0,0.00018552,2]
[363700329,1748824239570,-430.0,0.00018552,2]
[363700330,1748824239580,-506.65,0.00018552,2]
[363700331,1748824239590,-430.0,0.00018552,2]
[363700332,1748824239600,-430.0,0.00018552,2]
[363700333,1748824239610,-430.0,0.00018552,2]
[363700334,1748824239620,-502.16,0.00018552,2]
[363700335,1748824239630,-455.79,0.00018552,2]
[363700336,1748824239641,-430.0,0.00018612,2]
[363700337,1748824239651,-430.0,0.00018612,2]
[363700338,1748824239661,-580.15,0.00018612,2]
[363700339,1748824239672,-430.0,0.00018612,2]
[363700340,1748824239682,-430.0,0.00018612,2]
[363700342,1748824239692,-500.0,0.00018673,2]
[363700344,1748824239701,-156.37182406,0.000187,2]
[363700346,1748824239712,-3637.54846454,0.00018728,2]
[363700349,1748824239723,-420.0,0.00018762,2]
[363700350,1748824239733,-634.91487522,0.00018814,2]
[363700352,1748824239743,-430.0,0.00018826,2]
[363700353,1748824239753,-430.0,0.00018826,2]
[363700354,1748824239763,-430.0,0.00018826,2]
[363700355,1748824239773,-430.0,0.00018826,2]
[363700356,1748824239783,-506.65,0.00018826,2]
[363700357,1748824239792,-430.0,0.00018826,2]
[363700358,1748824239802,-430.0,0.00018826,2]
[363700359,1748824239811,-430.0,0.00018826,2]
[363700360,1748824239822,-502.16,0.00018826,2]
[363700361,1748824239839,-455.79,0.00018826,2]
[363700362,1748824239849,-430.0,0.00018886,2]
[363700363,1748824239859,-430.0,0.00018886,2]
[363700364,1748824239869,-580.15,0.00018886,2]
[363700365,1748824239882,-536.04,0.00018886,2]
[363700366,1748824239892,-430.0,0.00018886,2]
[363700367,1748824239901,-657.40679757,0.000189,2]
[363700369,1748824239911,-3637.54846454,0.00018934,2]
[363700370,1748824239922,-1200.0,0.00018971,2]
[363700371,1748824239932,-160.0,0.00019067,2]
[363700372,1748824239943,-160.0,0.00019067,2]
[363700373,1748824239953,-160.0,0.00019067,2]
[363700374,1748824239964,-160.0,0.00019067,2]
[363700375,1748824239974,-160.0,0.00019067,2]
[363700376,1748824239984,-842.5625,0.00019067,2]
[363700378,1748824239994,-160.0,0.00019067,2]
[363700379,1748824240004,-423.51412927,0.00019067,2]
[363700380,1748824240014,-12666.87825251,0.00019067,2]
[363700381,1748824240024,-212.80060342,0.00019067,2]
[363700382,1748824240033,-229.3709046,0.00019067,2]
[363700383,1748824240043,-160.0,0.00019067,2]
[363700384,1748824240052,-160.0,0.00019067,2]
[363700386,1748824240062,-430.0,0.000191,2]
[363700388,1748824240072,-180.16,0.000191,2]
[363700390,1748824240081,-430.0,0.000191,2]
[363700392,1748824240091,-506.65,0.000191,2]
[363700394,1748824240101,-430.0,0.000191,2]
[363700396,1748824240111,-430.0,0.000191,2]
[363700398,1748824240121,-430.0,0.000191,2]
[363700400,1748824240132,-502.16,0.000191,2]
[363700402,1748824240141,-455.79,0.000191,2]
[363700404,1748824240151,-3637.54846454,0.00019141,2]
[363700406,1748824240161,-430.0,0.0001916,2]
[363700408,1748824240171,-430.0,0.0001916,2]
[363700410,1748824240180,-580.15,0.0001916,2]
[363700412,1748824240192,-430.0,0.0001916,2]
[363700414,1748824240202,-173.899305,0.00019178,2]
[363700416,1748824240212,-1000.0,0.00019221,2]
[363700418,1748824240222,-3637.54846454,0.00019348,2]
[363700420,1748824240232,-430.0,0.00019374,2]
[363700422,1748824240241,-430.0,0.00019374,2]
[363700424,1748824240251,-506.65,0.00019374,2]
[363700427,1748824240261,-430.0,0.00019374,2]
[363700429,1748824240271,-430.0,0.00019374,2]
[363700431,1748824240280,-430.0,0.00019374,2]
[363700432,1748824240290,-502.16,0.00019374,2]
[363700435,1748824240300,-455.79,0.00019374,2]
[363700437,1748824240310,-430.0,0.00019434,2]
[363700439,1748824240320,-430.0,0.00019434,2]
[363700441,1748824240329,-580.15,0.00019434,2]
[363700443,1748824240338,-430.0,0.00019434,2]
[363700445,1748824240348,-151.0,0.000195,2]
[363700447,1748824240357,-4465.39443153,0.000195,2]
[363700449,1748824240367,-150.25210295,0.00019505,2]
[363700451,1748824240378,-3637.54846454,0.00019555,2]
[363700453,1748824240388,-368.05,0.00019599,2]
[363700455,1748824240397,-430.0,0.00019648,2]
[363700457,1748824240407,-430.0,0.00019648,2]
[363700459,1748824240416,-506.65,0.00019648,2]
[363700462,1748824240426,-430.0,0.00019648,2]
[363700464,1748824240435,-430.0,0.00019648,2]
[363700466,1748824240445,-430.0,0.00019648,2]
[363700468,1748824240454,-502.16,0.00019648,2]
[363700470,1748824240464,-455.79,0.00019648,2]
[363700472,1748824240473,-430.0,0.00019708,2]
[363700474,1748824240482,-430.0,0.00019708,2]
[363700476,1748824240492,-580.15,0.00019708,2]
[363700478,1748824240501,-430.0,0.00019708,2]
[363700481,1748824240511,-3637.54846454,0.00019762,2]
[363700483,1748824240521,-500.0,0.00019864,2]
[363700486,1748824240531,-709.31861656,0.00019864,2]
[363700489,1748824240540,-500.0,0.00019864,2]
[363700491,1748824240550,-709.31861656,0.00019864,2]
[363700493,1748824240560,-500.0,0.00019864,2]
[363700495,1748824240569,-709.31861656,0.00019864,2]
[363700497,1748824240579,-709.31861656,0.00019864,2]